fUST/lending_fUST_20240110
["ID","MTS","AMOUNT","RATE_DAILY","PERIOD"]
[311069078,1704892247022,-500.0,0.00027945,2]
[311069079,1704892247031,-1044.81,0.00027945,2]
[311069080,1704892247042,-500.0,0.00027945,2]
[311069081,1704892247051,-500.0,0.00027945,2]
[311069082,1704892247061,-725.2,0.00027945,2]
[311069083,1704892247070,-500.0,0.00027945,2]
[311069084,1704892247083,-500.0,0.00027945,2]
[311069085,1704892247094,-500.0,0.00027945,2]
[311069086,1704892247104,-500.0,0.00027945,2]
[311069087,1704892247114,-500.0,0.00027945,2]
[311069088,1704892247124,-500.0,0.00027945,2]
[311069089,1704892247134,-500.0,0.00027945,2]
[311069090,1704892247145,-500.0,0.00027945,2]
[311069091,1704892247154,-467.47072547,0.00027945,2]
[311069092,1704892247164,-500.0,0.00027945,2]
[311069093,1704892247173,-500.0,0.00027945,2]
[311069094,1704892247183,-500.0,0.00027945,2]
[311069095,1704892247193,-500.0,0.00027945,2]
[311069096,1704892247207,-500.0,0.00027945,2]
[311069097,1704892247218,-500.0,0.00027945,2]
[311069098,1704892247228,-500.0,0.00027945,2]
[311069099,1704892247239,-2877.68,0.00027945,2]
[311069100,1704892247249,-500.0,0.00027945,2]
[311069101,1704892247260,-1000.0,0.00027945,4]
[311069102,1704892247271,-1262.23,0.00027945,2]
[311069103,1704892247281,-500.0,0.00027945,2]
[311069104,1704892247291,-500.0,0.00027945,2]
[311069105,1704892247303,-1270.36,0.00027945,2]
[311069106,1704892247313,-1561.52,0.00027945,2]
[311069107,1704892247322,-500.0,0.00027945,2]
[311069108,1704892247333,-500.0,0.00027945,2]
[311069109,1704892247342,-155.50976738,0.00028,2]
[311069110,1704892247352,-1500.0,0.00028,2]
[311069111,1704892247361,-500.0,0.00028082,2]
[311069112,1704892247372,-527.386832,0.00028219,2]
[311069113,1704892247381,-527.386832,0.00028219,2]
[311069114,1704892247391,-547.809672,0.00028219,2]
[311069115,1704892247401,-547.809672,0.00028219,2]
[311069116,1704892247410,-500.0,0.00028219,2]
[311069117,1704892247419,-538.9415448,0.00028219,2]
[311069118,1704892247428,-500.0,0.00028219,2]
[311069119,1704892247437,-500.0,0.00028219,2]
[311069120,1704892247447,-1345.97,0.00028219,2]
[311069121,1704892247456,-500.0,0.00028219,2]
[311069122,1704892247465,-500.0,0.00028219,2]
[311069123,1704892247474,-500.0,0.00028219,2]
[311069124,1704892247484,-1680.34,0.00028219,2]
[311069125,1704892247494,-500.0,0.00028219,2]
[311069126,1704892247503,-262.71124088,0.00028219,2]
[311069127,1704892247513,-500.0,0.00028219,2]
[311069128,1704892247523,-500.0,0.00028219,2]
[311069129,1704892247533,-500.0,0.00028219,2]
[311069130,1704892247543,-500.0,0.00028219,2]
[311069131,1704892247552,-500.0,0.00028219,2]
[311069132,1704892247561,-637.17,0.00028219,2]
[311069133,1704892247571,-500.0,0.00028219,2]
[311069134,1704892247583,-540.54,0.00028219,2]
[311069135,1704892247592,-1068.48,0.00028219,2]
[311069136,1704892247602,-500.0,0.00028219,2]
[311069137,1704892247611,-500.0,0.00028219,2]
[311069138,1704892247622,-500.0,0.00028219,2]
[311069139,1704892247632,-853.02,0.00028219,2]
[311069140,1704892247641,-500.0,0.00028219,2]
[311069141,1704892247651,-500.0,0.00028219,2]
[311069142,1704892247663,-500.0,0.00028219,2]
[311069143,1704892247673,-500.0,0.00028219,2]
[311069144,1704892247684,-500.0,0.00028219,2]
[311069145,1704892247694,-500.0,0.00028219,2]
[311069146,1704892247705,-500.0,0.00028219,2]
[311069147,1704892247714,-500.0,0.00028219,2]
[311069148,1704892247724,-564.65,0.00028219,2]
[311069149,1704892247734,-500.0,0.00028219,2]
[311069150,1704892247743,-500.0,0.00028219,2]
[311069151,1704892247752,-500.0,0.00028219,2]
[311069152,1704892247762,-500.0,0.00028219,2]
[311069153,1704892247772,-500.0,0.00028219,2]
[311069154,1704892247784,-500.0,0.00028219,2]
[311069155,1704892247795,-937.49,0.00028219,2]
[311069156,1704892247804,-504.63675004,0.00028219,2]
[311069157,1704892247814,-500.0,0.00028219,2]
[311069158,1704892247824,-500.0,0.00028219,2]
[311069159,1704892247835,-500.0,0.00028219,5]
[311069160,1704892247844,-500.0,0.00028219,2]
[311069161,1704892247854,-500.0,0.00028219,2]
[311069162,1704892247864,-500.0,0.00028219,2]
[311069163,1704892247874,-1063.94,0.00028219,2]
[311069164,1704892247883,-500.0,0.00028219,2]
[311069165,1704892247894,-780.66,0.00028219,2]
[311069166,1704892247903,-1134.8,0.00028219,2]
[311069167,1704892247913,-500.0,0.00028219,2]
[311069168,1704892247922,-500.0,0.00028219,2]
[311069169,1704892247932,-500.0,0.00028219,2]
[311069170,1704892247941,-500.0,0.00028219,2]
[311069171,1704892247951,-500.0,0.00028219,2]
[311069172,1704892247960,-500.0,0.00028219,2]
[311069173,1704892247970,-1025.31,0.00028219,2]
[311069174,1704892247980,-500.0,0.00028219,2]
[311069175,1704892247989,-2874.74,0.00028219,2]
[311069176,1704892247998,-500.0,0.00028219,2]
[311069177,1704892248008,-500.0,0.00028219,2]
[311069178,1704892248017,-6774.09,0.00028219,2]
[311069179,1704892248027,-500.0,0.00028219,2]
[311069180,1704892248036,-500.0,0.00028219,2]
[311069181,1704892248045,-500.0,0.00028219,2]
[311069182,1704892248053,-5019.09054477,0.00028219,2]
[311069183,1704892248172,-39.55945523,0.00028219,2]
[311069184,1704892248181,-500.0,0.00028219,2]
[311069185,1704892248191,-500.0,0.00028219,2]
[311069186,1704892248199,-2995.66,0.00028219,2]
[311069187,1704892248209,-500.0,0.00028219,2]
[311069188,1704892248218,-500.0,0.00028219,2]
[311069189,1704892248227,-500.0,0.00028219,2]
[311069190,1704892248236,-579.01,0.00028219,2]
[311069191,1704892248246,-6529.67,0.00028219,2]
[311069192,1704892248255,-500.0,0.00028219,2]
[311069193,1704892248264,-4768.34,0.00028219,2]
[311069194,1704892248274,-1236.97,0.00028219,2]
[311069195,1704892248283,-500.0,0.00028219,2]
[311069196,1704892248293,-39207.4,0.00028219,2]
[311069197,1704892248302,-500.0,0.00028219,2]
[311069198,1704892248311,-500.0,0.00028219,2]
[311069199,1704892248321,-1650.6,0.00028219,2]
[311069200,1704892248331,-500.0,0.00028219,2]
[311069201,1704892248340,-500.0,0.00028219,2]
[311069202,1704892248378,-500.0,0.00028219,2]
[311069203,1704892248388,-1323.82,0.00028219,2]
[311069204,1704892248397,-500.0,0.00028219,2]
[311069205,1704892248406,-359.97101555,0.00028219,2]
[311069206,1704892248416,-500.0,0.00028219,2]
[311069207,1704892248426,-500.0,0.00028219,2]
[311069208,1704892248434,-14360.01,0.00028219,2]
[311069209,1704892248443,-500.0,0.00028219,2]
[311069210,1704892248452,-500.0,0.00028219,2]
[311069211,1704892248461,-732.09,0.00028219,2]
[311069212,1704892248470,-1391.12,0.00028219,2]
[311069213,1704892248479,-2251.08,0.00028219,2]
[311069214,1704892248489,-500.0,0.00028219,2]
[311069215,1704892248498,-3557.11,0.00028219,2]
[311069216,1704892248602,-741.46,0.00028219,2]
[311069217,1704892248612,-1712.79,0.00028219,2]
[311069218,1704892248622,-500.0,0.00028219,2]
[311069219,1704892248631,-2168.04,0.00028219,2]
[311069220,1704892248640,-730.53,0.00028219,2]
[311069221,1704892248650,-500.0,0.00028219,2]
[311069222,1704892248660,-1044.81,0.00028219,2]
[311069223,1704892248669,-500.0,0.00028219,2]
[311069224,1704892248680,-198.437001,0.00028219,2]
[311069225,1704892248690,-725.2,0.00028219,2]
[311069226,1704892248700,-500.0,0.00028219,2]
[311069227,1704892248709,-500.0,0.00028219,2]
[311069228,1704892248719,-500.0,0.00028219,2]
[311069229,1704892248729,-500.0,0.00028219,2]
[311069230,1704892248738,-500.0,0.00028219,2]
[311069231,1704892248748,-500.0,0.00028219,2]
[311069232,1704892248757,-500.0,0.00028219,2]
[311069233,1704892248766,-500.0,0.00028219,2]
[311069234,1704892248777,-500.0,0.00028219,2]
[311069235,1704892248786,-500.0,0.00028219,2]
[311069236,1704892248795,-500.0,0.00028219,2]
[311069237,1704892248805,-2877.68,0.00028219,2]
[311069238,1704892248814,-500.0,0.00028219,2]
[311069239,1704892248823,-1000.0,0.00028219,4]
[311069240,1704892248835,-500.0,0.00028219,2]
[311069241,1704892248845,-1262.23,0.00028219,2]
[311069242,1704892248854,-500.0,0.00028219,2]
[311069243,1704892248864,-1270.36,0.00028219,2]
[311069244,1704892248872,-1561.52,0.00028219,2]
[311069245,1704892248882,-500.0,0.00028219,2]
[311069246,1704892248891,-500.0,0.00028219,2]
[311069247,1704892248901,-3150.0,0.000283,4]
[311069248,1704892248913,-500.0,0.00028356,2]
[311069249,1704892248922,-1465.26535398,0.00028493,2]
[311069250,1704892248933,-200.0,0.00028493,2]
[311069251,1704892248942,-300.0,0.00028493,2]
[311069252,1704892248951,-2079.63666476,0.00028493,2]
[311069253,1704892248961,-3313.2630203,0.00028493,2]
[311069254,1704892248971,-154.95351395,0.00028493,2]
[311069255,1704892248981,-3496.83624002,0.00028493,2]
[311069256,1704892248990,-305.01426273,0.00028493,2]
[311069257,1704892248999,-500.0,0.00028493,2]
[311069258,1704892249009,-500.0,0.00028493,2]
[311069259,1704892249018,-500.0,0.00028493,2]
[311069260,1704892249028,-1345.97,0.00028493,2]
[311069261,1704892249037,-500.0,0.00028493,2]
[311069262,1704892249047,-500.0,0.00028493,2]
[311069263,1704892249056,-500.0,0.00028493,2]
[311069264,1704892249066,-1680.34,0.00028493,2]
[311069265,1704892249075,-500.0,0.00028493,2]
[311069266,1704892249086,-500.0,0.00028493,2]
[311069267,1704892249095,-500.0,0.00028493,2]
[311069268,1704892249105,-500.0,0.00028493,2]
[311069269,1704892249115,-500.0,0.00028493,2]
[311069270,1704892249124,-637.17,0.00028493,2]
[311069271,1704892249134,-500.0,0.00028493,2]
[311069272,1704892249147,-540.54,0.00028493,2]
[311069273,1704892249156,-1068.48,0.00028493,2]
[311069274,1704892249166,-500.0,0.00028493,2]
[311069275,1704892249175,-500.0,0.00028493,2]
[311069276,1704892249185,-500.0,0.00028493,2]
[311069277,1704892249194,-853.02,0.00028493,2]
[311069278,1704892249204,-500.0,0.00028493,2]
[311069279,1704892249213,-500.0,0.00028493,2]
[311069280,1704892249222,-500.0,0.00028493,2]
[311069281,1704892249231,-500.0,0.00028493,2]
[311069282,1704892249241,-500.0,0.00028493,2]
[311069283,1704892249251,-500.0,0.00028493,2]
[311069284,1704892249260,-500.0,0.00028493,2]
[311069285,1704892249269,-564.65,0.00028493,2]
[311069286,1704892249279,-500.0,0.00028493,2]
[311069287,1704892249289,-500.0,0.00028493,2]
[311069288,1704892249298,-500.0,0.00028493,2]
[311069289,1704892249308,-500.0,0.00028493,2]
[311069290,1704892249318,-500.0,0.00028493,2]
[311069291,1704892249328,-937.49,0.00028493,2]
[311069292,1704892249338,-392.95669236,0.00028493,2]
[311069293,1704892249348,-500.0,0.00028493,2]
[311069294,1704892249358,-500.0,0.00028493,5]
[311069295,1704892249367,-201.81793178,0.00028493,2]
[311069296,1704892249377,-500.0,0.00028493,2]
[311069297,1704892249388,-1063.94,0.00028493,2]
[311069298,1704892249398,-500.0,0.00028493,2]
[311069299,1704892249408,-780.66,0.00028493,2]
[311069300,1704892249418,-1134.8,0.00028493,2]
[311069301,1704892249427,-500.0,0.00028493,2]
[311069302,1704892249437,-568.3886669,0.00028493,2]
[311069303,1704892249446,-500.0,0.00028493,2]
[311069304,1704892249456,-500.0,0.00028493,2]
[311069305,1704892249465,-500.0,0.00028493,2]
[311069306,1704892249475,-1025.31,0.00028493,2]
[311069307,1704892249485,-500.0,0.00028493,2]
[311069308,1704892249495,-2874.74,0.00028493,2]
[311069309,1704892249505,-500.0,0.00028493,2]
[311069310,1704892249515,-500.0,0.00028493,2]
[311069311,1704892249525,-6774.09,0.00028493,2]
[311069312,1704892249535,-500.0,0.00028493,2]
[311069313,1704892249545,-500.0,0.00028493,2]
[311069314,1704892249554,-500.0,0.00028493,2]
[311069315,1704892249564,-5058.65,0.00028493,2]
[311069316,1704892249575,-413.36269227,0.00028493,2]
[311069317,1704892249588,-2995.66,0.00028493,2]
[311069318,1704892249597,-500.0,0.00028493,2]
[311069319,1704892249607,-500.0,0.00028493,2]
[311069320,1704892249616,-632.64408372,0.00028493,2]
[311069321,1704892249626,-579.01,0.00028493,2]
[311069322,1704892249636,-6529.67,0.00028493,2]
[311069323,1704892249646,-500.0,0.00028493,2]
[311069324,1704892249655,-4768.34,0.00028493,2]
[311069325,1704892249665,-1236.97,0.00028493,2]
[311069326,1704892249674,-500.0,0.00028493,2]
[311069327,1704892249683,-39207.4,0.00028493,2]
[311069328,1704892249693,-500.0,0.00028493,2]
[311069329,1704892249702,-500.0,0.00028493,2]
[311069330,1704892249712,-1650.6,0.00028493,2]
[311069331,1704892249722,-500.0,0.00028493,2]
[311069332,1704892249732,-500.0,0.00028493,2]
[311069333,1704892249742,-500.0,0.00028493,2]
[311069334,1704892249751,-1323.82,0.00028493,2]
[311069335,1704892249760,-500.0,0.00028493,2]
[311069336,1704892249772,-500.0,0.00028493,2]
[311069337,1704892249783,-515.61042052,0.00028493,2]
[311069338,1704892249792,-14360.01,0.00028493,2]
[311069339,1704892249802,-500.0,0.00028493,2]
[311069340,1704892249811,-500.0,0.00028493,2]
[311069341,1704892249822,-732.09,0.00028493,2]
[311069342,1704892249834,-1391.12,0.00028493,2]
[311069343,1704892249844,-2251.08,0.00028493,2]
[311069344,1704892249855,-500.0,0.00028493,2]
[311069345,1704892249865,-3557.11,0.00028493,2]
[311069346,1704892249874,-741.46,0.00028493,2]
[311069347,1704892249883,-1712.79,0.00028493,2]
[311069348,1704892249892,-500.0,0.00028493,2]
[311069349,1704892249902,-2168.04,0.00028493,2]
[311069350,1704892249911,-730.53,0.00028493,2]
[311069351,1704892249921,-500.0,0.00028493,2]
[311069352,1704892249930,-1044.81,0.00028493,2]
[311069353,1704892249940,-500.0,0.00028493,2]
[311069354,1704892249950,-725.2,0.00028493,2]
[311069355,1704892249959,-500.0,0.00028493,2]
[311069356,1704892249969,-500.0,0.00028493,2]
[311069357,1704892249978,-500.0,0.00028493,2]
[311069358,1704892249987,-500.0,0.00028493,2]
[311069359,1704892249996,-500.0,0.00028493,2]
[311069360,1704892250006,-500.0,0.00028493,2]
[311069361,1704892250015,-500.0,0.00028493,2]
[311069362,1704892250025,-225.06263195,0.00028493,2]
[311069363,1704892250034,-500.0,0.00028493,2]
[311069364,1704892250044,-500.0,0.00028493,2]
[311069365,1704892250054,-500.0,0.00028493,2]
[311069366,1704892250064,-2877.68,0.00028493,2]
[311069367,1704892250074,-500.0,0.00028493,2]
[311069368,1704892250088,-645.86435661,0.00028493,4]
[311069369,1704892250099,-500.0,0.00028493,2]
[311069370,1704892250110,-1262.23,0.00028493,2]
[311069371,1704892250121,-500.0,0.00028493,2]
[311069372,1704892250131,-1270.36,0.00028493,2]
[311069373,1704892250141,-1561.52,0.00028493,2]
[311069374,1704892250151,-221.44410943,0.00028493,2]
[311069375,1704892250161,-500.0,0.0002863,2]
[311069376,1704892250171,-3512.77098084,0.000287,14]
[311069377,1704892250182,-547.809672,0.000287,2]
[311069378,1704892250192,-547.809672,0.000287,2]
[311069379,1704892250203,-10014.12238485,0.00028765,2]
[311069380,1704892250213,-825.09744305,0.00028765,2]
[311069381,1704892250222,-500.0,0.00028767,2]
[311069382,1704892250233,-500.0,0.00028767,2]
[311069383,1704892250243,-1345.97,0.00028767,2]
[311069384,1704892250252,-500.0,0.00028767,2]
[311069385,1704892250262,-500.0,0.00028767,2]
[311069386,1704892250273,-489.86771307,0.00028767,2]
[311069387,1704892250284,-1680.34,0.00028767,2]
[311069388,1704892250294,-500.0,0.00028767,2]
[311069389,1704892250304,-500.0,0.00028767,2]
[311069390,1704892250315,-500.0,0.00028767,2]
[311069391,1704892250325,-500.0,0.00028767,2]
[311069392,1704892250338,-500.0,0.00028767,2]
[311069393,1704892250348,-637.17,0.00028767,2]
[311069394,1704892250357,-500.0,0.00028767,2]
[311069395,1704892250368,-540.54,0.00028767,2]
[311069396,1704892250378,-1068.48,0.00028767,2]
[311069397,1704892250389,-500.0,0.00028767,2]
[311069398,1704892250399,-500.0,0.00028767,2]
[311069399,1704892250410,-272.45921452,0.00028767,2]
[311069400,1704892250420,-853.02,0.00028767,2]
[311069401,1704892250431,-500.0,0.00028767,2]
[311069402,1704892250440,-500.0,0.00028767,2]
[311069403,1704892250451,-500.0,0.00028767,2]
[311069404,1704892250460,-500.0,0.00028767,2]
[311069405,1704892250471,-500.0,0.00028767,2]
[311069406,1704892250480,-316.15933812,0.00028767,2]
[311069407,1704892250490,-280.67285239,0.00028767,2]
[311069408,1704892250501,-564.65,0.00028767,2]
[311069409,1704892250511,-500.0,0.00028767,2]
[311069410,1704892250520,-500.0,0.00028767,2]
[311069411,1704892250531,-500.0,0.00028767,2]
[311069412,1704892250541,-500.0,0.00028767,2]
[311069413,1704892250551,-500.0,0.00028767,2]
[311069414,1704892250562,-937.49,0.00028767,2]
[311069415,1704892250572,-500.0,0.00028767,2]
[311069416,1704892250583,-500.0,0.00028767,5]
[311069417,1704892250594,-330.22912445,0.00028767,2]
[311069418,1704892250604,-1063.94,0.00028767,2]
[311069419,1704892250614,-500.0,0.00028767,2]
[311069420,1704892250624,-780.66,0.00028767,2]
[311069421,1704892250634,-1134.8,0.00028767,2]
[311069422,1704892250644,-500.0,0.00028767,2]
[311069423,1704892250654,-500.0,0.00028767,2]
[311069424,1704892250664,-500.0,0.00028767,2]
[311069425,1704892250674,-300.0,0.00028767,2]
[311069426,1704892250683,-1025.31,0.00028767,2]
[311069427,1704892250693,-351.97873443,0.00028767,2]
[311069428,1704892250703,-2874.74,0.00028767,2]
[311069429,1704892250713,-500.0,0.00028767,2]
[311069430,1704892250722,-500.0,0.00028767,2]
[311069431,1704892250732,-6774.09,0.00028767,2]
[311069432,1704892250742,-500.0,0.00028767,2]
[311069433,1704892250752,-500.0,0.00028767,2]
[311069434,1704892250763,-500.0,0.00028767,2]
[311069435,1704892250773,-5058.65,0.00028767,2]
[311069436,1704892250783,-2995.66,0.00028767,2]
[311069437,1704892250793,-500.0,0.00028767,2]
[311069438,1704892250804,-500.0,0.00028767,2]
[311069439,1704892250814,-579.01,0.00028767,2]
[311069440,1704892250912,-6529.67,0.00028767,2]
[311069441,1704892250922,-317.2237177,0.00028767,2]
[311069442,1704892250933,-3688.47402325,0.00028767,2]
[311069443,1704892250949,-1079.86597675,0.00028767,2]
[311069444,1704892250960,-1236.97,0.00028767,2]
[311069445,1704892250970,-155.0,0.00028767,2]
[311069446,1704892250980,-500.0,0.00028767,2]
[311069447,1704892250990,-39207.4,0.00028767,2]
[311069448,1704892251001,-500.0,0.00028767,2]
[311069449,1704892251011,-500.0,0.00028767,2]
[311069450,1704892251021,-1650.6,0.00028767,2]
[311069451,1704892251031,-500.0,0.00028767,2]
[311069453,1704892251041,-500.0,0.00028767,2]
[311069454,1704892251051,-1323.82,0.00028767,2]
[311069455,1704892251062,-500.0,0.00028767,2]
[311069456,1704892251072,-500.0,0.00028767,2]
[311069457,1704892251082,-14360.01,0.00028767,2]
[311069458,1704892251094,-500.0,0.00028767,2]
[311069459,1704892251104,-500.0,0.00028767,2]
[311069460,1704892251113,-732.09,0.00028767,2]
[311069461,1704892251124,-1391.12,0.00028767,2]
[311069462,1704892251133,-2221.1113352,0.00028767,2]
[311069463,1704892251146,-29.9686648,0.00028767,2]
[311069464,1704892251156,-500.0,0.00028767,2]
[311069465,1704892251166,-2169.97374399,0.00028767,2]
[311069466,1704892251178,-1387.13625601,0.00028767,2]
[311069467,1704892251188,-741.46,0.00028767,2]
[311069468,1704892251198,-1712.79,0.00028767,2]
[311069469,1704892251207,-500.0,0.00028767,2]
[311069470,1704892251218,-2168.04,0.00028767,2]
[311069471,1704892251228,-730.53,0.00028767,2]
[311069472,1704892251237,-500.0,0.00028767,2]
[311069473,1704892251247,-1044.81,0.00028767,2]
[311069474,1704892251258,-500.0,0.00028767,2]
[311069475,1704892251267,-725.2,0.00028767,2]
[311069476,1704892251277,-500.0,0.00028767,2]
[311069477,1704892251287,-461.93363699,0.00028767,2]
[311069478,1704892251298,-500.0,0.00028767,2]
[311069479,1704892251309,-500.0,0.00028767,2]
[311069480,1704892251319,-500.0,0.00028767,2]
[311069481,1704892251330,-280.97018867,0.00028767,2]
[311069482,1704892251414,-155.09608849,0.00021998,2]
[311069483,1704892251425,-224.71504838,0.00024,2]
[311069484,1704892251435,-497.00944952,0.0002498,5]
[311069485,1704892251445,-15.14941361,0.00025,2]
[311069486,1704892251459,-139.72668551,0.00025,2]
[311069487,1704892251470,-3158.74619226,0.00027118,2]
[311069488,1704892251498,-268.31477389,0.00024656,2]
[311069489,1704892251510,-843.76911469,0.00024656,2]
[311069490,1704892251520,-1841.25380774,0.00027118,2]
[311069491,1704892251530,-2073.70992867,0.00027387,3]
[311069492,1704892251541,-13206.03007133,0.00027387,3]
[311069493,1704892251551,-219.02981133,0.00028767,2]
[311069494,1704892251560,-500.0,0.00028767,2]
[311069495,1704892251570,-500.0,0.00028767,2]
[311069496,1704892251580,-500.0,0.00028767,2]
[311069497,1704892251590,-500.0,0.00028767,2]
[311069498,1704892251601,-2877.68,0.00028767,2]
[311069499,1704892251610,-500.0,0.00028767,2]
[311069500,1704892251621,-500.0,0.00028767,2]
[311069501,1704892251630,-1262.23,0.00028767,2]
[311069502,1704892251640,-500.0,0.00028767,2]
[311069503,1704892251650,-1270.36,0.00028767,2]
[311069504,1704892251659,-1561.52,0.00028767,2]
[311069505,1704892251669,-225.0,0.00028767,2]
[311069506,1704892251679,-225.0,0.00028767,2]
[311069507,1704892251688,-527.386832,0.00028767,2]
[311069508,1704892251698,-527.386832,0.00028767,2]
[311069509,1704892251707,-23052.97577072,0.000288,2]
[311069510,1704892251717,-200.0,0.000288,4]
[311069511,1704892251727,-151.0,0.00028816,2]
[311069512,1704892251736,-227.72634792,0.00028904,2]
[311069513,1704892251746,-50000.0,0.00028961,5]
[311069514,1704892251756,-309.5355883,0.00028967,2]
[311069515,1704892251765,-223.04406995,0.00028967,2]
[311069516,1704892251775,-155.60722897,0.00028967,2]
[311069517,1704892251786,-245.99800654,0.00028968,2]
[311069518,1704892251799,-33.31790392,0.00028968,2]
[311069519,1704892251808,-384.30210778,0.00028968,2]
[311069520,1704892251818,-1982.97164167,0.00029,2]
[311069521,1704892251828,-1072.83,0.00029,2]
[311069522,1704892251841,-667.27142695,0.00029,2]
[311069523,1704892251854,-163.65932921,0.00029,2]
[311069524,1704892251865,-175.96082494,0.00029,2]
[311069525,1704892251879,-1324.03917506,0.00029,2]
[311069526,1704892251889,-1500.0,0.00029,2]
[311069527,1704892251898,-1500.0,0.00029,2]
[311069528,1704892251907,-1500.0,0.00029,2]
[311069529,1704892251917,-1573.77,0.00029,2]
[311069530,1704892251927,-1500.0,0.00029,2]
[311069531,1704892251936,-1351.02012021,0.00029,2]
[311069532,1704892251947,-1000.0,0.00029,29]
[311069533,1704892251956,-6000.0,0.00029,2]
[311069534,1704892251966,-1500.0,0.00029,2]
[311069535,1704892251976,-547.809672,0.00029033,2]
[311069536,1704892251987,-547.809672,0.00029033,2]
[311069537,1704892251997,-2536.05136073,0.00029033,2]
[311069538,1704892252009,-2150.7289946,0.00029033,2]
[311069539,1704892252018,-500.0,0.00029041,2]
[311069540,1704892252027,-500.0,0.00029041,2]
[311069541,1704892252036,-1345.97,0.00029041,2]
[311069542,1704892252045,-500.0,0.00029041,2]
[311069543,1704892252056,-500.0,0.00029041,2]
[311069544,1704892252066,-1680.34,0.00029041,2]
[311069545,1704892252076,-500.0,0.00029041,2]
[311069546,1704892252086,-500.0,0.00029041,2]
[311069547,1704892252098,-500.0,0.00029041,2]
[311069548,1704892252108,-500.0,0.00029041,2]
[311069549,1704892252118,-500.0,0.00029041,2]
[311069550,1704892252128,-637.17,0.00029041,2]
[311069551,1704892252138,-500.0,0.00029041,2]
[311069552,1704892252147,-540.54,0.00029041,2]
[311069553,1704892252159,-1068.48,0.00029041,2]
[311069554,1704892252170,-500.0,0.00029041,2]
[311069555,1704892252180,-500.0,0.00029041,2]
[311069556,1704892252191,-853.02,0.00029041,2]
[311069557,1704892252202,-500.0,0.00029041,2]
[311069558,1704892252212,-500.0,0.00029041,2]
[311069559,1704892252222,-500.0,0.00029041,2]
[311069560,1704892252232,-500.0,0.00029041,2]
[311069561,1704892252241,-500.0,0.00029041,2]
[311069562,1704892252252,-564.65,0.00029041,2]
[311069563,1704892252262,-500.0,0.00029041,2]
[311069564,1704892252271,-500.0,0.00029041,2]
[311069565,1704892252281,-500.0,0.00029041,2]
[311069566,1704892252292,-540.32080062,0.00029041,2]
[311069567,1704892252302,-500.0,0.00029041,2]
[311069568,1704892252312,-937.49,0.00029041,2]
[311069569,1704892252323,-500.0,0.00029041,2]
[311069570,1704892252333,-500.0,0.00029041,5]
[311069571,1704892252344,-1063.94,0.00029041,2]
[311069572,1704892252355,-500.0,0.00029041,2]
[311069573,1704892252366,-780.66,0.00029041,2]
[311069574,1704892252376,-1134.8,0.00029041,2]
[311069575,1704892252386,-500.0,0.00029041,2]
[311069576,1704892252396,-264.38459975,0.00029041,2]
[311069577,1704892252406,-500.0,0.00029041,2]
[311069578,1704892252416,-1025.31,0.00029041,2]